{"text_format":"1","workbook":"xlsx","n_sheets":3,"sheets":["Dashboard","Apparatuurlijst","Draaitabelgegevens"],"not_rendered":{"charts":0,"images":0,"macros":1,"external_links":0,"defined_names":13,"comments":0,"pivot_tables":1},"unopened":[],"bounds":{"document_bytes":16777216,"sheet_cells":100000,"rows_first":2000,"rows_last":500,"rows_between":2000,"halvings":0,"cell_chars":16384,"cell_head_chars":4096},"cells_cut":0,"cells_raw":0,"read":"whole","date_system":"1900"}

{"sheet":"Dashboard","index":0,"n_rows":20,"n_cols":6,"rows_kept":20,"cut":false,"hidden":false,"merged":[]}
[null,"Dashboard"]
[]
[]
[null,null,null,null,null,"Totaal aantal"]
[null,null,null,null,null,{"$f":"GETPIVOTDATA(\"Aantal\",Draaitabelgegevens!$B$11)","v":3}]
[]
[null,null,null,null,null,"Totaal maandelijkse kosten"]
[null,null,null,null,null,{"$f":"GETPIVOTDATA(\"Totaal maandelijkse kosten\",Draaitabelgegevens!$B$11)","v":1765.5943035068672}]
[]
[null,null,null,null,null,"Bedrijfskosten"]
[null,null,null,null,null,{"$f":"GETPIVOTDATA(\"Bedrijfskosten\",Draaitabelgegevens!$B$11)","v":605}]
[]
[null,null,null,null,null,"Maandelijkse aflossing"]
[null,null,null,null,null,{"$f":"GETPIVOTDATA(\"Maandelijkse aflossing \",Draaitabelgegevens!$B$11)","v":659.72222222222217}]
[]
[null,null,null,null,null,"Aflossingsbedrag"]
[null,null,null,null,null,{"$f":"GETPIVOTDATA(\"Aflossingsbedrag\",Draaitabelgegevens!$B$11)","v":1160.5943035068672}]
[]
[null,null,null,null,null,"Huidige waarde"]
[null,null,null,null,null,{"$f":"GETPIVOTDATA(\"Huidige waarde \",Draaitabelgegevens!$B$11)","v":37901.369863013701}]

{"sheet":"Apparatuurlijst","index":1,"n_rows":9,"n_cols":20,"rows_kept":9,"cut":false,"hidden":false,"merged":[]}
[null,"Apparatuurlijst"]
[]
[null,null,null,null,null,"Markeren als aantal maandelijkse aflossingen minder bedragen dan: ",20]
[]
[null,"Activa- of serienummer","Itembeschrijving (merk en model)","Locatie","Conditie","Verkoper","Aantal resterende gebruiksjaren","Beginwaarde","Aanbetaling","Datum aangekocht of geleased","Looptijd lening (jaren)","Rente","Maandelijkse bedrijfskosten","Verwachte waarde aan einde looptijd","Resterende maandelijkse aflossingen","Maandelijkse aflossing","Totale maandelijkse kosten","Jaarlijkse afschrijving (lineair)","Maandelijkse afschrijving (lineair)","Huidige waarde"]
[null,123,"Merk model 1","Hoofdvertakking","Goed","Lokaal",5,30000,5000,"2011-01-15",4,0.1,200,20000,{"$f":"IFERROR(SUMPRODUCT(--(DAY(ROW(OFFSET($A$1,,,DATE(YEAR(APPARATUUR[[#This Row],[Datum aangekocht of geleased]])+APPARATUUR[[#This Row],[Looptijd lening (jaren)]],MONTH(APPARATUUR[[#This Row],[Datum aangekocht of geleased]])-1,DAY(APPARATUUR[[#This Row],[Datum aangekocht of geleased]]))-TODAY()))+DATE(YEAR(APPARATUUR[[#This Row],[Datum aangekocht of geleased]])+APPARATUUR[[#This Row],[Looptijd lening (jaren)]],MONTH(APPARATUUR[[#This Row],[Datum aangekocht of geleased]]),DAY(APPARATUUR[[#This Row],[Datum aangekocht of geleased]]))-1)=DAY(APPARATUUR[[#This Row],[Datum aangekocht of geleased]]))),0)","v":26},{"$f":"IFERROR(-(APPARATUUR[Beginwaarde]>0)*(APPARATUUR[Beginwaarde]<>APPARATUUR[Aanbetaling])*PMT(APPARATUUR[Rente]/MaandenInJaaar,APPARATUUR[Looptijd lening (jaren)]*MaandenInJaaar,APPARATUUR[Beginwaarde]-APPARATUUR[Aanbetaling]),0)","v":634.06458586867973},{"$f":"APPARATUUR[[#This Row],[Maandelijkse aflossing]]+APPARATUUR[Maandelijkse bedrijfskosten]","v":834.06458586867973},{"$f":"IFERROR((APPARATUUR[Beginwaarde]>0)*SLN(APPARATUUR[Beginwaarde],APPARATUUR[Verwachte waarde aan einde looptijd],APPARATUUR[Looptijd lening (jaren)]),0)","v":2500},{"$f":"IFERROR(APPARATUUR[Jaarlijkse afschrijving (lineair)]/MaandenInJaaar,0)","v":208.33333333333334},{"$f":"IFERROR(APPARATUUR[Beginwaarde]-(APPARATUUR[Jaarlijkse afschrijving (lineair)]*((TODAY()-APPARATUUR[Datum aangekocht of geleased])/DagenInJaar)),0)","v":25479.452054794521}]
[null,234,"Merk model 2","Hoofdvertakking","Goed","Lokaal",4,12500,1500,"2011-03-10",3,7.7499999999999999E-2,120,3000,{"$f":"IFERROR(SUMPRODUCT(--(DAY(ROW(OFFSET($A$1,,,DATE(YEAR(APPARATUUR[[#This Row],[Datum aangekocht of geleased]])+APPARATUUR[[#This Row],[Looptijd lening (jaren)]],MONTH(APPARATUUR[[#This Row],[Datum aangekocht of geleased]])-1,DAY(APPARATUUR[[#This Row],[Datum aangekocht of geleased]]))-TODAY()))+DATE(YEAR(APPARATUUR[[#This Row],[Datum aangekocht of geleased]])+APPARATUUR[[#This Row],[Looptijd lening (jaren)]],MONTH(APPARATUUR[[#This Row],[Datum aangekocht of geleased]]),DAY(APPARATUUR[[#This Row],[Datum aangekocht of geleased]]))-1)=DAY(APPARATUUR[[#This Row],[Datum aangekocht of geleased]]))),0)","v":16},{"$f":"IFERROR(-(APPARATUUR[Beginwaarde]>0)*(APPARATUUR[Beginwaarde]<>APPARATUUR[Aanbetaling])*PMT(APPARATUUR[Rente]/MaandenInJaaar,APPARATUUR[Looptijd lening (jaren)]*MaandenInJaaar,APPARATUUR[Beginwaarde]-APPARATUUR[Aanbetaling]),0)","v":343.43280007691891},{"$f":"APPARATUUR[[#This Row],[Maandelijkse aflossing]]+APPARATUUR[Maandelijkse bedrijfskosten]","v":463.43280007691891},{"$f":"IFERROR((APPARATUUR[Beginwaarde]>0)*SLN(APPARATUUR[Beginwaarde],APPARATUUR[Verwachte waarde aan einde looptijd],APPARATUUR[Looptijd lening (jaren)]),0)","v":3166.6666666666665},{"$f":"IFERROR(APPARATUUR[Jaarlijkse afschrijving (lineair)]/MaandenInJaaar,0)","v":263.88888888888886},{"$f":"IFERROR(APPARATUUR[Beginwaarde]-(APPARATUUR[Jaarlijkse afschrijving (lineair)]*((TODAY()-APPARATUUR[Datum aangekocht of geleased])/DagenInJaar)),0)","v":7242.465753424658}]
[null,345,"Merk model 2","Vertakking 1","Redelijk","Overig",1,10000,2500,"2010-09-15",4,0.08,285,1000,{"$f":"IFERROR(SUMPRODUCT(--(DAY(ROW(OFFSET($A$1,,,DATE(YEAR(APPARATUUR[[#This Row],[Datum aangekocht of geleased]])+APPARATUUR[[#This Row],[Looptijd lening (jaren)]],MONTH(APPARATUUR[[#This Row],[Datum aangekocht of geleased]])-1,DAY(APPARATUUR[[#This Row],[Datum aangekocht of geleased]]))-TODAY()))+DATE(YEAR(APPARATUUR[[#This Row],[Datum aangekocht of geleased]])+APPARATUUR[[#This Row],[Looptijd lening (jaren)]],MONTH(APPARATUUR[[#This Row],[Datum aangekocht of geleased]]),DAY(APPARATUUR[[#This Row],[Datum aangekocht of geleased]]))-1)=DAY(APPARATUUR[[#This Row],[Datum aangekocht of geleased]]))),0)","v":22},{"$f":"IFERROR(-(APPARATUUR[Beginwaarde]>0)*(APPARATUUR[Beginwaarde]<>APPARATUUR[Aanbetaling])*PMT(APPARATUUR[Rente]/MaandenInJaaar,APPARATUUR[Looptijd lening (jaren)]*MaandenInJaaar,APPARATUUR[Beginwaarde]-APPARATUUR[Aanbetaling]),0)","v":183.09691756126861},{"$f":"APPARATUUR[[#This Row],[Maandelijkse aflossing]]+APPARATUUR[Maandelijkse bedrijfskosten]","v":468.09691756126858},{"$f":"IFERROR((APPARATUUR[Beginwaarde]>0)*SLN(APPARATUUR[Beginwaarde],APPARATUUR[Verwachte waarde aan einde looptijd],APPARATUUR[Looptijd lening (jaren)]),0)","v":2250},{"$f":"IFERROR(APPARATUUR[Jaarlijkse afschrijving (lineair)]/MaandenInJaaar,0)","v":187.5},{"$f":"IFERROR(APPARATUUR[Beginwaarde]-(APPARATUUR[Jaarlijkse afschrijving (lineair)]*((TODAY()-APPARATUUR[Datum aangekocht of geleased])/DagenInJaar)),0)","v":5179.4520547945212}]
[null,"Totaal",null,null,null,null,{"$f":"SUBTOTAL(101,APPARATUUR[Aantal resterende gebruiksjaren])","v":3.3333333333333335},{"$f":"SUBTOTAL(109,APPARATUUR[Beginwaarde])","v":52500},{"$f":"SUBTOTAL(109,APPARATUUR[Aanbetaling])","v":9000},null,{"$f":"SUBTOTAL(101,APPARATUUR[Looptijd lening (jaren)])","v":3.6666666666666665},{"$f":"SUBTOTAL(101,APPARATUUR[Rente])","v":8.5833333333333331E-2},{"$f":"SUBTOTAL(109,APPARATUUR[Maandelijkse bedrijfskosten])","v":605},{"$f":"SUBTOTAL(109,APPARATUUR[Verwachte waarde aan einde looptijd])","v":24000},{"$f":"SUBTOTAL(101,APPARATUUR[Resterende maandelijkse aflossingen])","v":21.333333333333332},{"$f":"SUBTOTAL(109,APPARATUUR[Maandelijkse aflossing])","v":1160.5943035068672},{"$f":"SUBTOTAL(109,APPARATUUR[Totale maandelijkse kosten])","v":1765.5943035068672},{"$f":"SUBTOTAL(101,APPARATUUR[Jaarlijkse afschrijving (lineair)])","v":2638.8888888888887},{"$f":"SUBTOTAL(101,APPARATUUR[Maandelijkse afschrijving (lineair)])","v":219.90740740740739},{"$f":"SUBTOTAL(109,APPARATUUR[Huidige waarde])","v":37901.369863013701}]

{"sheet":"Draaitabelgegevens","index":2,"n_rows":15,"n_cols":8,"rows_kept":15,"cut":false,"hidden":true,"merged":[]}
[null,"Draaitabelgegevens"]
[null,"Dit blad moet verborgen blijven. Als u de draaitabelstructuur op dit blad wijzigt, kan dit fouten in dashboardslicers tot gevolg hebben."]
[]
[null,"Itembeschrijving (merk en model)","(Alle)"]
[null,"Locatie","(Alle)"]
[null,"Conditie","(Alle)"]
[null,"Verkoper","(Alle)"]
[null,"Aantal resterende gebruiksjaren","(Alle)"]
[null,"Looptijd lening (jaren)","(Alle)"]
[]
[null,"Rijlabels","Aantal","Bedrijfskosten","Aflossingsbedrag","Totaal maandelijkse kosten","Maandelijkse aflossing ","Huidige waarde "]
[null,123,1,200,634.06458586867973,834.06458586867973,208.33333333333334,25479.452054794521]
[null,234,1,120,343.43280007691891,463.43280007691891,263.88888888888886,7242.465753424658]
[null,345,1,285,183.09691756126861,468.09691756126858,187.5,5179.4520547945212]
[null,"Eindtotaal",3,605,1160.5943035068672,1765.5943035068672,659.72222222222217,37901.369863013701]